Cogmind - Beta 14 @@@ ROGUE MODE // 2024.11.04 @ 16:18:09 Player: Komeiji O. Result: Destroyed by S-43 Plague with Heavy Machine Gun Performance ------------- Evolutions (9) 4500 Regions Visited (31) 6200 Robots Destroyed (315) 1575 Value Destroyed (16883) 16883 Prototype IDs (73) 1460 Alien Tech Used (2) 400 Bonus (6887) 6887 TOTAL SCORE: 37905 Bonus ------- High Alert Combat Kills 3830 Follower Combat Kills 1665 Aligned with FarCom 300 Met Data Miner 300 Met Zhirov 300 Met Warlord at Base 500 MAIN.C Attacked Warlord 500 Warlord Defense Kills 320 Friendly Fire -828 Cogmind --------- Core Integrity 0/1600 Matter 269/300 Energy 100/100 System Corruption 48% Temperature Cool (0) Movement Treading (160) Location -1/Access Parts ------- > --- POWER (3) -------- (None) > --- PROPULSION (4) --- Medium Treads > --- UTILITY (13) ----- Spectral Analyzer Improved Target Analyzer Advanced Hacking Suite Experimental Hacking Suite > --- WEAPON (5) ------- Compact HERF Cannon > --- INVENTORY (5) ---- (None) Peak State ------------ > --- POWER ------------ Particle Reactor Micro Antimatter Reactor Cooled Antimatter Reactor > --- PROPULSION ------- Heavy Siege Treads Advanced Heavy Siege Treads > --- UTILITY ---------- Coolant Network Advanced Coolant Injector High-capacity Storage Unit Spectral Analyzer Core Analyzer Advanced Weapon Cycler Hardened Medium Armor Plating Centrium Light Armor Plating Advanced Hacking Suite Experimental Hacking Suite Assault Drone Bay > --- WEAPON ----------- Gamma Rifle Wave Gun Compact HERF Cannon Linear Accelerator Vibroblade > --- INVENTORY -------- Light Antimatter Reactor Light Antimatter Reactor Micro Antimatter Reactor Quantum Reactor Centrium Heavy Treads Centrium Heavy Treads Biometal Heavy Treads Advanced Heavy Siege Treads Advanced Heat Sink Hardened Medium Armor Plating Layered Medium Armor Plating EM Disruption Field Compact HERF Cannon Matter Neutralizer Matter Neutralizer [Rating: 198] Favorites ----------- Power Particle Reactor Engine Improved Deuterium Engine Power Core Reinforced Fission Core Reactor Particle Reactor Propulsion Improved Titanium Leg Treads Centrium Heavy Treads Leg Improved Titanium Leg Wheel Compact Wheel Utility Large Storage Unit Device Advanced Heat Sink Storage Large Storage Unit Processor Advanced Targeting Computer Hackware Advanced Hacking Suite Protection Improved Medium Armor Plating Weapon Heavy Laser Energy Gun Heavy Laser Energy Cannon Heavy Plasma Cannon Ballistic Gun Gauss Rifle Ballistic Cannon Magnetic Acceleration Cannon Launcher Heavy Rocket Launcher Special Weapon Molecular Deconstructor Impact Weapon Powered Hammer Slashing Weapon Vibroblade Piercing Weapon Lance Build | -11 -10 -10 -10 -9 -8 -7 -7 -7 -7 -7 -7 -6 -6 -6 -6 -5 -5 -5 -5 -5 -5 -5 -4 -4 -4 -4 -4 -3 -3 -2 -1 ------- Run | Yrd Mat Min Exi Min Mat Fac Was Fac Low Low Zio Pro Fac Low Dat Pro Fac Was Fac Upp Upp War Pro Fac Upp Upp Zhi Pro Res Res Acc Slots Evolved 18 | . . . . . 4 2 . . . . . . 2 . . . 2 . . . . . . 2 . . . . 2 2 2 Power 2 | . . . . . . . . . . . . . . . . . . . . . . . . 1 . . . . . 1 . Propulsion 2 | . . . . . 1 . . . . . . . . . . . 1 . . . . . . . . . . . . . . Utility 11 | . . . . . 3 1 . . . . . . 1 . . . 1 . . . . . . 1 . . . . 2 1 1 Weapon 3 | . . . . . . 1 . . . . . . 1 . . . . . . . . . . . . . . . . . 1 Parts Attached 592 | 8 9 1 2 2 9 20 1 26 7 3 7 7 37 5 4 10 18 1 4 4 3 11 31 43 22 29 9 39 131 17 72 Power 64 | 1 2 . . . 1 3 . 4 . . 1 . 6 . . . 1 . . . . . 2 4 3 6 2 5 7 3 13 Engine 14 | 1 2 . . . . 1 . 3 . . 1 . 5 . . . 1 . . . . . . . . . . . . . . Core 19 | . . . . . 1 2 . 1 . . . . 1 . . . . . . . . . 2 1 1 6 1 1 1 1 . Reactor 31 | . . . . . . . . . . . . . . . . . . . . . . . . 3 2 . 1 4 6 2 13 Propulsion 75 | 2 2 . . . 1 2 . 4 . . . 1 4 . . 1 6 . . . . 1 4 10 3 5 . 6 14 2 7 Treads 22 | 2 . . . . 1 . . . . . . . . . . 1 . . . . . . . . . 1 . . 8 2 7 Leg 40 | . . . . . . 1 . 3 . . . 1 2 . . . 5 . . . . 1 3 9 2 3 . 6 4 . . Wheel 13 | . 2 . . . . 1 . 1 . . . . 2 . . . 1 . . . . . 1 1 1 1 . . 2 . . Hover . | . . . . . . . . . . . . . . . . . . . . . . . . . . . . . . . . Flight . | . . . . . . . . . . . . . . . . . . . . . . . . . . . . . . . . Utility 206 | 2 2 . . . 4 6 . 10 2 3 2 1 12 2 . 3 8 1 2 . . 10 8 16 3 8 2 15 60 6 18 Device 118 | 1 1 . . . 3 3 . 5 1 2 1 . 5 2 . 1 2 1 2 . . 8 4 10 2 5 2 10 39 3 5 Storage 24 | 1 1 . . . . 1 . . . 1 . . 2 . . 1 3 . . . . . 2 1 . 1 . 3 7 . . Processor 12 | . . . . . . . . . . . . . 1 . . . 2 . . . . . 1 1 1 . . . 2 1 3 Hackware 5 | . . . . . . . . . . . . . . . . . 1 . . . . . 1 . . . . . 2 1 . Protection 47 | . . . . . 1 2 . 5 1 . 1 1 4 . . 1 . . . . . 2 . 4 . 2 . 2 10 1 10 Artifact . | . . . . . . . . . . . . . . . . . . . . . . . . . . . . . . . . Weapon 247 | 3 3 1 2 2 3 9 1 8 5 . 4 5 15 3 4 6 3 . 2 4 3 . 17 13 13 10 5 13 50 6 34 Energy Gun 125 | 1 1 . . 1 2 7 . 6 3 . 3 3 9 2 3 4 1 . . 1 2 . . 7 6 3 3 8 31 2 16 Energy Cannon 31 | . . . . . . . . . . . . . 1 1 1 . 2 . . 2 . . 2 1 3 2 1 3 3 1 8 Ballistic Gun 14 | 2 1 . 1 1 . . . . . . . . . . . . . . . . . . 4 . . . . 2 . . 3 Ballistic Cannon 5 | . . . . . . . . . . . . . . . . . . . . . . . 2 1 . . . . . 1 1 Launcher 27 | . . 1 1 . 1 . 1 . 2 . 1 2 3 . . 2 . . 1 1 1 . 3 1 4 2 . . . . . Special Weapon 4 | . . . . . . . . . . . . . . . . . . . . . . . 3 1 . . . . . . . Impact Weapon 4 | . . . . . . 2 . 2 . . . . . . . . . . . . . . . . . . . . . . . Slashing Weapon 35 | . 1 . . . . . . . . . . . 2 . . . . . 1 . . . 3 2 . 2 1 . 15 2 6 Piercing Weapon 2 | . . . . . . . . . . . . . . . . . . . . . . . . . . 1 . . 1 . . Special Melee Weapon . | . . . . . . . . . . . . . . . . . . . . . . . . . . . . . . . . Unidentified Prototypes 29 | . . . . . 1 1 . . . 1 1 . 1 . . . . . . . . 3 2 1 . 1 3 . 10 4 . Corrupted Parts 7 | . . . . . . . . . . . . . . . . 1 . . . . . . . . . 1 . 4 . . 1 System Corruption 26 | . . . . . . . . . . . . . . . . 2 . . . . . . . . . 3 . 19 . . 2 Parts Lost 174 | . 3 . . . . . 3 . 1 . . 2 9 1 . 3 2 . . . . . 12 16 14 10 . 17 26 4 51 Power 25 | . 1 . . . . . . . . . . . 1 . . . . . . . . . 2 . 2 3 . 3 2 . 11 Propulsion 31 | . 1 . . . . . . . . . . 1 1 . . 1 . . . . . . 2 6 3 2 . 3 5 . 6 Utility 57 | . . . . . . . 2 . 1 . . . 3 1 . 2 1 . . . . . 5 5 4 . . 5 12 1 15 Weapon 61 | . 1 . . . . . 1 . . . . 1 4 . . . 1 . . . . . 3 5 5 5 . 6 7 3 19 Highest Loss Streak 20 | . 2 . . . . . 3 . 1 . . 2 8 1 . 2 1 . . . . . 5 6 4 9 . 6 4 4 20 To Critical Strikes 1 | . 1 . . . . . . . . . . . . . . . . . . . . . . . . . . . . . . Average Slot Usage (%) 88 | . 99 100 71 100 96 92 78 97 100 86 83 82 84 97 76 96 96 98 99 100 100 100 82 90 94 67 79 93 85 80 80 Engine 2 | . 14 14 14 14 4 . . 5 7 7 7 7 5 6 6 6 5 5 5 5 5 5 1 . . . . . . . . Core 2 | . . . . . 4 7 5 1 . . . . . . . . . . . . . . 2 2 3 6 10 3 2 2 . Reactor 2 | . . . . . . . . . . . . . . . . . . . . . . . . 5 4 . . 3 5 9 10 Treads 3 | . 11 . . . 9 4 . . . . . . . . . 4 . . . . . . . . . 2 5 1 7 8 7 Leg 10 | . . . . . . 2 5 18 23 23 23 22 17 6 6 . 20 23 23 23 23 23 18 16 12 6 10 14 2 . . Wheel 3 | . 16 28 28 28 18 7 7 1 . . . . 2 13 13 13 2 . . . . . . 1 6 6 5 1 . . . Device 20 | . 13 14 14 14 27 20 13 19 25 19 22 16 15 30 33 29 21 21 23 23 23 23 14 19 18 12 29 28 23 18 18 Storage 7 | . 14 14 14 14 9 10 15 10 7 10 7 7 7 13 13 10 6 11 11 11 11 10 9 5 5 4 5 11 5 4 3 Processor 3 | . . . . . . . . . . . . . 4 . . . 4 5 5 5 5 5 5 12 11 2 . . 3 4 6 Hackware 2 | . . . . . . . . . . . . . . . . . 2 . . . . . 2 4 . . . . 7 4 8 Protection 5 | . . . . . 5 14 11 14 12 2 . 5 5 . . 4 5 5 5 5 5 4 1 2 9 4 10 4 2 8 6 Energy Gun 13 | . 5 . . 6 12 22 15 20 22 23 22 20 22 20 2 17 15 11 7 4 4 5 . 7 15 4 . 15 16 10 11 Energy Cannon 2 | . . . . . . . . . . . . . . 6 . 6 6 11 10 17 17 17 5 . 3 6 . 2 . 2 2 Ballistic Gun 1 | . 21 14 . 17 5 . . . . . . . . . . . . . . . . . 5 3 . . . 1 . . 1 Slashing Weapon 1 | . 1 . . . . . . . . . . . . . . . . . 2 . . . 4 3 . 5 2 . 2 . 2 Peak Build Rating 198 | 7 8 9 10 11 24 52 53 55 53 73 68 68 82 67 67 68 84 83 85 84 85 105 109 120 119 142 104 114 174 191 198 Average Rating 99 | 5 7 8 7 10 20 45 46 51 52 67 67 65 71 65 49 60 73 81 84 83 84 94 88 110 112 89 85 102 156 177 177 On Entrance 68 | . 7 8 9 10 11 24 52 29 51 52 67 68 66 63 67 67 64 79 83 85 83 85 98 91 111 87 103 104 113 159 191 Naked Turns . | . . . . . . . . . . . . . . . . . . . . . . . . . . . . . . . . Heaviest Build 168 | 12 28 29 29 29 38 72 72 67 68 57 55 58 66 67 67 73 74 73 73 82 82 87 87 82 94 101 98 98 168 156 143 Greatest Support 160 | 40 40 26 26 26 26 28 28 55 55 55 55 57 57 32 32 32 75 75 75 75 75 85 90 105 32 32 16 95 160 155 160 Greatest Overweight (x) 23 | . 1 1 1 1 1 2 2 1 1 1 . 1 3 2 2 2 1 . . 1 1 1 1 5 5 23 6 6 6 1 1 Average Overweight (x) . | . . 1 . 1 1 1 1 . . . . . . 1 1 1 . . . 1 1 . . . 3 3 4 1 . . . Largest Inventory Capacity 25 | 8 15 15 15 15 15 15 15 15 15 15 15 15 15 15 15 15 15 15 15 15 15 15 15 15 15 15 15 15 25 20 20 Average Capacity 15 | 7 10 15 15 15 15 15 15 15 15 15 15 15 15 15 15 15 15 15 15 15 15 15 15 15 15 13 15 15 17 20 19 Most Carried 20 | 6 12 13 15 15 15 15 15 15 15 15 15 15 15 15 15 15 15 14 15 15 15 15 15 15 15 15 15 15 20 19 20 Average Carried 14 | 3 8 12 14 14 13 14 14 14 14 14 14 13 13 13 15 14 14 14 14 14 14 14 14 14 14 11 11 13 15 12 16 Final Capacity 20 | 8 15 15 15 15 15 15 15 15 15 15 15 15 15 15 15 15 15 15 15 15 15 15 15 15 15 15 15 15 20 20 5 Final Carried 19 | 6 12 13 13 15 15 15 14 15 15 15 15 14 12 15 15 14 14 14 15 15 15 15 15 15 10 11 8 14 14 19 . Class Distribution -------------------- 19% | Scavenger-Tank 18% | Scavenger-Gunner 13% | Hacker-Tank 11% | Tank 9% | Mutant 7% | Skirmisher 5% | Gunner 3% | Scavenger-Skirmisher 3% | Scavenger-Mutant Dominant Class ---------------- Mutant | -10/Materials Mutant | -10/Mines Mutant | -10/Exiles Mutant | -9/Mines Scavenger-Skirmisher | -8/Materials Tank | -7/Factory Tank | -7/Waste Tank | -7/Factory Tank | -7/Lower Caves Gunner | -7/Lower Caves Gunner | -7/Zion Tank | -6/Proximity Caves Skirmisher | -6/Factory Scavenger-Gunner | -6/Lower Caves Scavenger-Mutant | -6/Data Miner Scavenger-Gunner | -5/Proximity Caves Scavenger-Gunner | -5/Factory Scavenger-Gunner | -5/Waste Scavenger-Gunner | -5/Factory Scavenger-Gunner | -5/Upper Caves Scavenger-Gunner | -5/Upper Caves Scavenger-Gunner | -5/Warlord Scavenger-Gunner | -4/Proximity Caves Scavenger-Tank | -4/Factory Scavenger-Tank | -4/Upper Caves Derelict-Mutant | -4/Upper Caves Scavenger-Mutant | -4/Zhirov Scavenger-Tank | -3/Proximity Caves Hacker-Tank | -3/Research Scavenger-Tank | -2/Research Hacker-Tank | -1/Access Resources | -11 -10 -10 -10 -9 -8 -7 -7 -7 -7 -7 -7 -6 -6 -6 -6 -5 -5 -5 -5 -5 -5 -5 -4 -4 -4 -4 -4 -3 -3 -2 -1 ----------- Run | Yrd Mat Min Exi Min Mat Fac Was Fac Low Low Zio Pro Fac Low Dat Pro Fac Was Fac Upp Upp War Pro Fac Upp Upp Zhi Pro Res Res Acc Matter Collected 10548 | 305 313 . 69 50 129 235 . 362 189 315 268 336 1837 61 . 126 209 82 52 137 85 138 480 916 369 498 60 467 1456 165 839 Remotely . | . . . . . . . . . . . . . . . . . . . . . . . . . . . . . . . . Salvage Created 20331 | 81 436 16 . . 265 173 . 430 162 50 . 226 2010 199 . 261 245 340 134 358 225 202 698 964 505 767 470 973 5210 379 4552 Parts 732 | 13 26 1 . . 14 9 . 19 5 3 . 8 58 4 . 12 11 4 3 8 5 5 31 42 20 20 4 31 207 21 148 Haulers Intercepted 5 | . 2 . . . 2 . . . . . . . . . . . . . . . . . . 1 . . . . . . . Recyclers Shooed 8 | . 2 . . . 1 . . . . . . . 4 . . . . . . . . . . . . . . . 1 . . Parts Field Recycled . | . . . . . . . . . . . . . . . . . . . . . . . . . . . . . . . . Retrieved Matter . | . . . . . . . . . . . . . . . . . . . . . . . . . . . . . . . . Parts Self-Destructed 115 | . . . . . . . . . 6 7 . 7 . 6 . 12 . . . 7 5 . 21 . 13 12 3 16 . . . Prevented 30 | . . . . . . . . . . . . 1 . . . 3 . . . . . . . . 3 9 . 14 . . . Kills | -11 -10 -10 -10 -9 -8 -7 -7 -7 -7 -7 -7 -6 -6 -6 -6 -5 -5 -5 -5 -5 -5 -5 -4 -4 -4 -4 -4 -3 -3 -2 -1 ------- Run | Yrd Mat Min Exi Min Mat Fac Was Fac Low Low Zio Pro Fac Low Dat Pro Fac Was Fac Upp Upp War Pro Fac Upp Upp Zhi Pro Res Res Acc Combat Hostiles Destroyed 288 | . 8 2 . . 3 3 . 7 7 1 . 9 20 3 . 5 4 1 . 7 4 3 12 15 17 9 . 12 68 7 61 Melee 9 | . . . . . . 1 . . . . . . . . . . . . . . . . 2 1 . 4 . . 1 . . Guns 163 | . 3 . . . 2 2 . 7 1 1 . 5 11 1 . 2 2 . . . . . 4 8 4 2 . 9 61 3 35 Cannons 39 | . . . . . . . . . . . . . 1 1 . 1 1 1 . 4 2 3 5 . 1 1 . 2 2 2 12 AOE 48 | . 5 2 . . 1 . . . 6 . . 4 7 . . 2 . . . 2 1 . . 4 10 2 . . 1 . 1 Classes Destroyed 25 | 2 4 . . . 1 2 . 1 1 . . 1 4 . . . . 1 . 1 . . 2 . . . . 1 2 2 . Worker 12 | 1 2 . . . . . . . . . . . 3 . . . . . . . . . . 1 . . . . 2 . 3 Builder 4 | . . . . . . . . 1 . . . . 2 . . . 1 . . . . . . . . . . . . . . Tunneler 4 | 3 . . . . . . . . . . . . . . . . . . . . . . . . . . . . . . 1 Hauler 5 | . 2 . . . 2 . . . . . . . . . . . . . . . . . . 1 . . . . . . . Recycler 14 | . 2 . . . . . . . . . . . 9 . . . . . 1 . . . . . . . . . 2 . . Mechanic 2 | . . . . . . . . . . . . . . . . . . . . . . . . . . . . . 1 . 1 Operator 2 | . . . . . 1 . . . . . . . . . . . . . . . . . . 1 . . . . . . . Drone 2 | . . . . . . . . . . . . 1 . . . . . . . . . . 1 . . . . . . . . Watcher 3 | . . . . . . . . . . . . . 1 . . . . . . . . . . . . . . . 1 . 1 Swarmer 48 | . 6 2 . . . . . . 1 . . 4 . 1 . 2 1 . . . . . . . 11 3 . . 3 5 9 Saboteur 3 | . . . . . . . . . . . . . . . . . . . . . . . . . . . . . 1 . 2 Grunt 86 | . 2 . . . 3 1 . . 3 1 . 4 2 2 . 1 1 . . 3 4 1 . 3 5 2 . 8 21 . 19 Brawler 12 | . . . . . . . . . 2 . . . . . . 1 . . . 1 . 1 . . . 1 . . 1 . 5 Duelist 4 | . . . . . . . . . . . . . . . . . . . . 1 . 1 . . . . . . . . 2 Protector 3 | . . . . . . . . . . . . . . . . . . . . . . . 2 . . . . . . . 1 Sentry 26 | . . . . . . 1 . 4 2 . . . 2 . . . 1 . . 1 . . 2 4 1 1 . 1 3 . 3 Demolisher 4 | . . . . . . . . . . . . . 1 . . . . . . . . . 3 . . . . . . . . Specialist 5 | . . . . . . . . . . . . . . . . . . . . . . . 3 . . . . . 2 . . Hunter 20 | . . . . . . . . . . . . . 1 . . . . . . . . . 1 2 . . . 2 9 . 5 Programmer 62 | . . . . . . 1 . 3 . . . . 2 . . 1 1 . . 1 . . 1 5 . 2 . 1 29 . 15 Compactor 1 | . . . . . . . . . . . . . . . . . . 1 . . . . . . . . . . . . . Striker 1 | . . . . . . . . . . . . . . . . . . . . . . . . . . . . . . 1 . Executioner 1 | . . . . . . . . . . . . . . . . . . . . . . . . . . . . . . 1 . Samaritan 1 | . . . . . . . . . . . . . . . . . . . . . . . . . . . . 1 . . . Assembled 12 | . . . . . . . . . . . . . 12 . . . . . . . . . . . . . . . . . . Thug 1 | . . . . . . . . . . . . . . . . . . . . . . . . 1 . . . . . . . Best Kill Streak 18 | 2 8 2 . . 3 1 . 1 7 1 . 5 18 2 . 2 2 1 1 3 4 2 2 6 8 3 . 5 8 7 8 Combat Bots Only 12 | . 5 2 . . 2 1 . 1 7 1 . 5 12 2 . 2 1 1 . 3 4 2 2 6 8 3 . 5 8 7 6 Max Kills in Single Turn 6 | 1 6 2 . . 1 1 . 1 3 1 . 3 6 1 . 1 1 1 1 1 1 1 1 1 3 2 . 1 4 1 2 Gunslinging 1 | . . . . . . . . . . . . . . . . . . . . . . . . . . . . . 1 . 1 Exploded 6 | . 3 2 . . 1 . . . 3 . . 2 6 . . 1 . . . 1 1 . . 1 3 2 . . 1 . 1 Melee 1 | . . . . . . 1 . . . . . . . . . . . . . . . . 1 1 . 1 . . 1 . . Uniques/NPCs Destroyed . | . . . . . . . . . . . . . . . . . . . . . . . . . . . . . . . . Combat | -11 -10 -10 -10 -9 -8 -7 -7 -7 -7 -7 -7 -6 -6 -6 -6 -5 -5 -5 -5 -5 -5 -5 -4 -4 -4 -4 -4 -3 -3 -2 -1 -------- Run | Yrd Mat Min Exi Min Mat Fac Was Fac Low Low Zio Pro Fac Low Dat Pro Fac Was Fac Upp Upp War Pro Fac Upp Upp Zhi Pro Res Res Acc Hostile Shots Fired 2707 | . 35 2 . . 7 42 3 86 29 1 . 29 110 16 . 22 16 . . 18 16 41 130 184 134 222 . 185 620 59 700 Missed 691 | . 10 . . . 1 12 . 43 7 . . 5 34 2 . 9 4 . . 2 4 13 28 72 33 61 . 73 133 9 136 Damage Taken 39059 | . 408 17 . . 107 481 118 391 418 15 . 432 1290 273 . 212 394 480 . 310 223 323 1890 2632 1949 3260 . 2101 7809 1416 12110 Core 4746 | . 7 9 . . . 49 . 85 72 . . 61 146 43 . 19 7 480 . 22 38 31 191 380 220 289 . 163 718 113 1603 Absorbed by Shields 3605 | . . . . . . . . . 72 . . . . . . . 39 . . . . 307 664 . . . . . 1866 93 564 Reduced by Siege Mode 1961 | . . . . . . . . . . . . . . . . . . . . . . . . . . . . . 424 122 1415 Redirected to Shielding 96 | . . . . . . . . . . . . . . . . . . . . . . . . . . . . . 96 . . Ignored by Resistances 630 | . . . . . . 8 28 14 . . . . . . . . . . . . . . . . . . . 9 194 . 377 Regen/Repaired (Parts) 251 | . 7 . . . . . . . . . . . . . . . . . . . . 244 . . . . . . . . . Core Remaining (%) 65 | 100 . . . 93 100 . . . . . . 61 . . . 75 . . . . . . 23 . . . . 8 38 92 . Volleys Fired 781 | 16 21 2 . . 17 8 2 19 10 2 . 12 60 8 . 11 13 7 3 9 8 12 43 49 53 34 . 45 171 12 134 Largest 5 | 2 2 2 . . 2 3 3 3 3 3 . 3 4 4 . 4 4 4 2 4 4 4 4 4 4 4 . 4 4 3 5 Hottest 507 | 40 60 50 . . 106 165 165 201 213 213 . 204 280 309 . 300 324 324 159 339 351 351 270 323 323 313 . 342 507 250 406 Shots Fired 2237 | 32 42 4 . . 31 26 4 58 16 6 . 23 149 29 . 21 44 29 6 31 28 47 117 125 110 44 . 130 505 36 544 Gun 1783 | 32 42 2 . . 28 26 3 58 6 6 . 20 133 22 . 12 30 14 3 5 5 11 34 96 61 22 . 107 498 31 476 Cannon 380 | . . . . . . . . . . . . . 8 7 . 4 14 15 3 23 22 36 70 20 36 19 . 23 7 5 68 Launcher 64 | . . 2 . . 3 . 1 . 10 . . 3 8 . . 5 . . . 3 1 . 6 6 13 3 . . . . . Special 10 | . . . . . . . . . . . . . . . . . . . . . . . 7 3 . . . . . . . Kinetic 265 | 32 25 2 . . 9 . . . . . . . . . . . . . . . . . 52 71 . . . 10 . . 64 Thermal 1407 | . . . . . 2 . . 54 6 6 . 16 51 29 . 10 34 29 6 28 27 47 52 22 63 22 . 90 431 11 371 Explosive 53 | . . 2 . . 3 . 1 . 10 . . 3 2 . . . . . . 3 1 . 6 6 13 3 . . . . . Electromagnetic 502 | . 17 . . . 17 26 3 4 . . . 4 96 . . 11 10 . . . . . . 23 34 19 . 30 74 25 109 Robot Hit Streak 49 | 7 9 . . . 9 4 5 15 6 4 . 7 22 12 . 14 9 10 3 17 4 6 19 45 17 7 . 10 25 12 49 Robot Miss Streak 8 | 2 2 . . . 2 3 1 1 1 2 . 4 3 3 . 1 3 2 1 2 2 2 3 2 3 6 . 4 4 3 8 Penetration Max 1 | . . . . . . . . . . . . . . . . . . . . . . . . . . . . . . . 1 Secondary Targets 35 | . . . . . . 1 . . . . . . 2 . . . . . . . . . . 1 . . . 1 10 . 20 Max Gunslinging Chain 2 | . . . . . . 1 . . . . . . 1 . . . . . . . . . . 1 . . . 1 1 . 2 Shots Hit Robots 1627 | 20 27 . . . 22 18 3 43 10 3 . 14 103 19 . 12 26 18 5 24 17 29 94 100 56 35 9 71 371 27 451 Core Hits 763 | 6 17 2 . . 18 5 2 18 24 2 . 18 79 4 . 10 11 4 3 15 6 11 40 42 34 21 6 29 158 14 164 Critical Kills 17 | . . . . . . . . . . . . . . . . . . . . 1 . . . . 1 . . . 12 . 3 Critical Parts Destroyed 13 | . . . . . . 1 . . . . . . . . . . . . . . . . . 1 . . . . 9 . 2 Critical Strikes 96 | . . . . . . 3 . 3 . . . . 6 1 . . 1 . . 1 . . 1 3 2 3 . 3 32 . 37 Burn 48 | . . . . . . . . 3 . . . . 4 1 . . 1 . . . . . . . 1 1 . 3 9 . 25 Meltdown 3 | . . . . . . . . . . . . . . . . . . . . 1 . . . . 1 . . . . . 1 Destroy 27 | . . . . . . . . . . . . . . . . . . . . . . . . 1 . . . . 21 . 5 Blast 1 | . . . . . . . . . . . . . . . . . . . . . . . . . . . . . . . 1 Corrupt 9 | . . . . . . 2 . . . . . . 2 . . . . . . . . . . . . . . . 1 . 4 Smash 1 | . . . . . . 1 . . . . . . . . . . . . . . . . . . . . . . . . . Sever 5 | . . . . . . . . . . . . . . . . . . . . . . . 1 2 . . . . 1 . 1 Impale 2 | . . . . . . . . . . . . . . . . . . . . . . . . . . 2 . . . . . Melee Attacks 163 | . 3 . . . . 6 . 5 . . . . 3 . . . . . 1 . . . 31 19 . 21 9 . 44 4 17 Impact 11 | . . . . . . 6 . 5 . . . . . . . . . . . . . . . . . . . . . . . Slashing 142 | . 3 . . . . . . . . . . . 3 . . . . . 1 . . . 31 19 . 11 9 . 44 4 17 Piercing 10 | . . . . . . . . . . . . . . . . . . . . . . . . . . 10 . . . . . Sneak Attacks 3 | . . . . . . . . . . . . . . . . . . . . . . . . 3 . . . . . . . Combat Hostiles 2 | . . . . . . . . . . . . . . . . . . . . . . . . 2 . . . . . . . Follow-up Attacks 3 | . . . . . . . . . . . . . . . . . . . . . . . . . . 3 . . . . . Damage Inflicted 50869 | 208 978 74 . . 494 277 230 878 1241 73 . 825 2988 444 . 525 735 522 119 1030 603 1127 3079 2967 2331 1460 790 1834 11733 740 12564 Guns 31246 | 208 296 . . . 281 128 2 865 85 73 . 274 1943 313 . 204 424 169 54 63 119 216 481 1331 662 331 . 1401 10874 638 9811 Cannons 8459 | . . . . . . . . . . . . . 75 131 . 114 311 353 65 635 355 911 1512 344 426 217 . 433 257 102 2218 Explosions 7684 | . 682 74 . . 213 . 228 . 1154 . . 551 953 . . 207 . . . 332 129 . 60 676 1243 361 . . 456 . 365 Melee 3383 | . . . . . . 149 . . . . . . . . . . . . . . . . 1026 616 . 551 790 . 96 . 155 Ramming 97 | . . . . . . . . 13 2 . . . 17 . . . . . . . . . . . . . . . 50 . 15 Kinetic 3525 | 208 179 . . . 33 . . . . . . . . . . . . . . . . . 751 823 . . . 84 . . 1447 Thermal 29718 | . 682 . . . 20 . . 816 85 73 . 237 890 444 . 239 579 522 119 698 474 1127 1242 551 764 331 . 1172 10047 244 8362 Explosive 6117 | . . 74 . . 213 . 228 . 1154 . . 551 731 . . . . . . 332 129 . 60 676 1243 361 . . . . 365 Electromagnetic 8029 | . 117 . . . 228 128 2 49 . . . 37 1350 . . 286 156 . . . . . . 301 324 217 . 578 1540 496 2220 Impact 149 | . . . . . . 149 . . . . . . . . . . . . . . . . . . . . . . . . . Slashing 2904 | . . . . . . . . . . . . . . . . . . . . . . . 1026 616 . 221 790 . 96 . 155 Piercing 330 | . . . . . . . . . . . . . . . . . . . . . . . . . . 330 . . . . . Highest Corruption 47 | . 1 1 1 1 . 9 9 13 13 13 13 . 3 3 3 5 2 12 12 12 12 12 5 11 11 18 18 37 34 8 47 Average Corruption 9 | . 1 1 1 1 . 6 9 10 13 13 13 . 1 3 3 3 1 10 12 12 12 4 3 8 5 14 18 18 11 8 11 Corruption Purged 13 | . . . . . . . . . . . . . . . . . . . . . . . . . 7 . . . 6 . . Corruption Blocked . | . . . . . . . . . . . . . . . . . . . . . . . . . . . . . . . . Effects 697 | . 1 . 3 2 . 23 4 60 27 14 8 . 25 5 3 7 3 4 14 31 14 4 25 27 36 48 12 63 143 13 78 Message Errors 149 | . . . 1 1 . 4 . 12 8 4 2 . 5 4 1 1 . . 4 6 3 1 4 2 11 12 4 15 25 3 16 Matter Fused 147 | . 1 . 2 . . 5 2 11 10 1 1 . 6 . . 1 1 . 3 9 3 3 2 8 9 11 1 12 29 3 13 Heat Flow Errors 81 | . . . . . . 2 . 8 . 1 1 . 4 1 . 1 1 1 2 2 3 . 4 3 5 3 1 5 20 3 10 Energy Discharges 83 | . . . . . . 6 1 4 3 4 2 . 3 . 1 3 1 1 2 4 2 . 5 5 2 4 . 5 18 1 6 Parts Rejected 14 | . . . . . . . . 1 . . . . 1 . . . . . . . . . 1 . 1 1 . 1 4 . 4 Parts Fused 6 | . . . . . . . . . . . 1 . 1 . . . . . . . . . . . . 1 . 1 . . 2 Data Loss (minor) 84 | . . . . . . 1 1 11 4 3 1 . 3 . 1 1 . . 2 4 1 . 1 5 2 7 3 7 19 1 6 Data Loss (major) 33 | . . . . 1 . 1 . 5 1 1 . . . . . . . . . 4 1 . 3 . 3 . 3 3 5 . 2 Misfires 34 | . . . . . . 2 . 5 . . . . 1 . . . . 1 . . 1 . 3 2 1 3 . 4 8 1 2 Alerts 12 | . . . . . . 2 . 1 1 . . . 1 . . . . . 1 . . . . . . 2 . 2 1 . 1 Misdirections 7 | . . . . . . . . . . . . . . . . . . 1 . . . . . . . 2 . . 2 . 2 Weapon Failures 47 | . . . . . . . . 2 . . . . . . . . . . . 2 . . 2 2 2 2 . 8 12 1 14 Overload Shots 1 | . . . . . . . . . . . . . . . . . . . . . . . . . . . . . 1 . . Overflow Damage 901 | . 98 . . . 9 41 . . . . . 10 36 8 . . 9 . 20 21 23 . 107 40 139 70 201 . 12 9 48 Projectiles 213 | . . . . . . . . . . . . . . 8 . . 9 . 20 21 23 . 30 13 32 . . . . 9 48 Explosions 283 | . 98 . . . 9 . . . . . . 10 36 . . . . . . . . . . . 107 14 . . 9 . . Melee 405 | . . . . . . 41 . . . . . . . . . . . . . . . . 77 27 . 56 201 . 3 . . Knockbacks 11 | . . . . . . . . . . . . . . . . . . . . . . . 4 2 . . . . . . 5 Impact 1 | . . . . . . . . . . . . . . . . . . . . . . . . . . . . . . . 1 Kinetic 10 | . . . . . . . . . . . . . . . . . . . . . . . 4 2 . . . . . . 4 Secondary . | . . . . . . . . . . . . . . . . . . . . . . . . . . . . . . . . Self-Inflicted Damage 788 | . 205 . . . 13 . 23 . 33 . . . 82 . . . . . . . . . 51 . 124 59 . . 99 . 99 Shots 21 | . 3 . . . 2 . 1 . 2 . . . 3 . . . . . . . . . 1 . 5 2 . . 1 . 1 Rammed 8 | . . . . . . . . . . . . . . . . . . . . . . . . . . . . . 1 . 7 Targets Rammed 18 | . . . . . . . . 2 1 . . . 3 . . . . . . . . . . . . . . . 5 . 7 Kicked 10 | . . . . . . . . 2 1 . . . 3 . . . . . . . . . . . . . . . 4 . . Crushed . | . . . . . . . . . . . . . . . . . . . . . . . . . . . . . . . . Highest Temperature 750 | . 12 . . . 14 183 45 207 . 96 35 40 354 223 . 310 307 750 252 242 281 324 250 189 324 257 68 239 405 193 534 Average Temperature 104 | . 11 . . . 14 74 23 61 . 43 35 21 85 109 . 112 111 392 146 105 123 148 75 68 108 74 68 76 103 50 113 Received Heat Transfer 3986 | . 6 . . . 72 54 . 102 114 9 . 105 85 54 . 45 51 . . 108 99 87 24 156 342 402 . 348 703 . 1020 Effects 22 | . . . . . . . . . . . . . . . . . . 9 . . . 1 . . 2 . . . 1 . 9 Shutdowns 4 | . . . . . . . . . . . . . . . . . . 2 . . . . . . . . . . . . 2 Energy Bleed 3 | . . . . . . . . . . . . . . . . . . 1 . . . 1 . . . . . . . . 1 Interference 9 | . . . . . . . . . . . . . . . . . . 1 . . . . . . 2 . . . . . 6 Matter Decay 1 | . . . . . . . . . . . . . . . . . . 1 . . . . . . . . . . . . . Damage (minor) 1 | . . . . . . . . . . . . . . . . . . 1 . . . . . . . . . . . . . Damage (major) 1 | . . . . . . . . . . . . . . . . . . . . . . . . . . . . . 1 . . Damage (core) 3 | . . . . . . . . . . . . . . . . . . 3 . . . . . . . . . . . . . Siege Activations 41 | . . . . . . . . . . . . . . . . . . . . . . . . . . . . . 23 1 17 Total Turns 879 | . . . . . . . . . . . . . . . . . . . . . . . . . . . . . 374 26 479 Longest Duration 86 | . . . . . . . . . . . . . . . . . . . . . . . . . . . . . 47 26 86 Robots Corrupted 9 | . . . . . 1 . . . . . . . 1 . . . . . . . . . . 1 . . . 1 2 2 1 Combat Hostiles 8 | . . . . . . . . . . . . . 1 . . . . . . . . . . 1 . . . 1 2 2 1 Parts Fried 45 | . . . . . 3 . . . . . . . 11 . . . . . . . . . . 2 2 . . 4 12 4 7 Impact Corruptions 3 | . . . . . . 2 . . . . . . . . . . . . . . . . . . . . . . 1 . . Robots Melted 19 | . . . . . . . . . . . . . . 1 . . 1 . . 1 1 . . . 2 . . . 1 . 12 Combat Hostiles 19 | . . . . . . . . . . . . . . 1 . . 1 . . 1 1 . . . 2 . . . 1 . 12 Parts Melted 160 | . . . . . . . . 11 . . . . 3 3 . 3 1 1 2 6 1 . 4 2 4 . . 10 49 1 59 Heat Transferred 45038 | . 600 . . . 37 . . 1739 174 148 . 444 2285 946 . 359 1085 911 211 1061 735 1528 1575 703 999 666 . 2180 12905 370 13377 Parts Sabotaged 3 | . . . . . . . . . . . . . . . . . . . . . . . . . . . . . 3 . . Parts Stolen . | . . . . . . . . . . . . . . . . . . . . . . . . . . . . . . . . Parts Stripped . | . . . . . . . . . . . . . . . . . . . . . . . . . . . . . . . . Power Chain Reactions 5 | . 1 . . . . . . . . . . . 1 . . 2 . . . . . . . . . . . . 1 . . Alert | -11 -10 -10 -10 -9 -8 -7 -7 -7 -7 -7 -7 -6 -6 -6 -6 -5 -5 -5 -5 -5 -5 -5 -4 -4 -4 -4 -4 -3 -3 -2 -1 ------- Run | Yrd Mat Min Exi Min Mat Fac Was Fac Low Low Zio Pro Fac Low Dat Pro Fac Was Fac Upp Upp War Pro Fac Upp Upp Zhi Pro Res Res Acc Peak Influence 1530 | 20 329 125 . . 206 90 8 90 . . . . 230 . . . 341 128 111 . . . . 469 . . . . 1530 1025 1265 Initial 860 | . 13 36 . . . 30 8 . . . . . 150 . . . 34 92 89 . . . . 36 . . . . . 860 507 Average 300 | 5 123 100 . . 57 36 5 28 . . . . 81 . . . 180 108 90 . . . . 248 . . . . 367 878 788 Maximum Alert Level 4 | . 1 . . . 1 . . . . . . . 1 . . . 1 . . . . . . 2 . . . . 4 3 4 Low Security (%) 60 | 100 71 100 . 100 98 100 100 100 . . . . 84 . . . 55 100 100 . . . . 31 . . . . 55 . . Level 1 13 | . 28 . . . 1 . . . . . . . 15 . . . 44 . . . . . . 65 . . . . 14 . . Level 2 7 | . . . . . . . . . . . . . . . . . . . . . . . . 2 . . . . 6 . 40 Level 3 13 | . . . . . . . . . . . . . . . . . . . . . . . . . . . . . 10 100 45 Level 4 5 | . . . . . . . . . . . . . . . . . . . . . . . . . . . . . 12 . 13 Level 5 . | . . . . . . . . . . . . . . . . . . . . . . . . . . . . . . . . High Security . | . . . . . . . . . . . . . . . . . . . . . . . . . . . . . . . . Max Security . | . . . . . . . . . . . . . . . . . . . . . . . . . . . . . . . . Squads Dispatched 68 | . 1 . . . 1 2 . 4 . . . . 6 . . . 1 . . . . . . 7 . 1 . . 26 1 18 Investigation 8 | . 1 . . . . . . 1 . . . . . . . . . . . . . . . . . . . . 5 . 1 Extermination 28 | . . . . . . 1 . 3 . . . . 2 . . . 1 . . . . . . 4 . . . . 10 . 7 Reinforcement 13 | . . . . . 1 1 . . . . . . 4 . . . . . . . . . . 1 . . . . 5 1 . Assault 13 | . . . . . . . . . . . . . . . . . . . . . . . . . . 1 . . 5 . 7 Garrison 6 | . . . . . . . . . . . . . . . . . . . . . . . . 2 . . . . 1 . 3 Intercept . | . . . . . . . . . . . . . . . . . . . . . . . . . . . . . . . . Searches Triggered . | . . . . . . . . . . . . . . . . . . . . . . . . . . . . . . . . Data Miner Redirects 5 | . . . . . . . . . . . . . . . . . . . . . . . . . . . . . 1 . 4 Construction Impeded 1 | . . . . . . . . . . . . . 1 . . . . . . . . . . . . . . . . . . Haulers Reinforced 4 | . . . . . . . . . . . . . 1 . . . . . . . . . . 1 . . . . 1 1 . Active Scanning Responses . | . . . . . . . . . . . . . . . . . . . . . . . . . . . . . . . . Cargo Convoy Interrupts . | . . . . . . . . . . . . . . . . . . . . . . . . . . . . . . . . Stealth | -11 -10 -10 -10 -9 -8 -7 -7 -7 -7 -7 -7 -6 -6 -6 -6 -5 -5 -5 -5 -5 -5 -5 -4 -4 -4 -4 -4 -3 -3 -2 -1 --------- Run | Yrd Mat Min Exi Min Mat Fac Was Fac Low Low Zio Pro Fac Low Dat Pro Fac Was Fac Upp Upp War Pro Fac Upp Upp Zhi Pro Res Res Acc Distress Signals 45 | . 1 . . . 2 . . . . . . . . . . . . . . . . . 23 2 . . . . 13 2 2 Communications Jammed . | . . . . . . . . . . . . . . . . . . . . . . . . . . . . . . . . Distress Signals . | . . . . . . . . . . . . . . . . . . . . . . . . . . . . . . . . Times Spotted 521 | . 16 3 . . 13 3 6 8 12 1 . 9 29 7 . 9 12 6 1 7 4 35 27 23 21 17 . 17 111 15 109 Peak Tracking Total 13 | . 7 3 . . 4 2 6 3 7 1 . 4 8 4 . 5 2 5 1 3 3 13 6 5 7 9 . 5 7 7 13 Tactical Retreats 26 | . . . . . 1 . . . . . . . 1 . . 1 . . . . . . 1 1 5 1 . 3 7 1 4 Traps | -11 -10 -10 -10 -9 -8 -7 -7 -7 -7 -7 -7 -6 -6 -6 -6 -5 -5 -5 -5 -5 -5 -5 -4 -4 -4 -4 -4 -3 -3 -2 -1 ------- Run | Yrd Mat Min Exi Min Mat Fac Was Fac Low Low Zio Pro Fac Low Dat Pro Fac Was Fac Upp Upp War Pro Fac Upp Upp Zhi Pro Res Res Acc Traps Triggered 16 | . 2 . . . . 4 . 3 . . . . 1 . . . 1 . . . . . . 2 . . . . 3 . . Indirectly . | . . . . . . . . . . . . . . . . . . . . . . . . . . . . . . . . Trap Hack Attempts . | . . . . . . . . . . . . . . . . . . . . . . . . . . . . . . . . Triggered . | . . . . . . . . . . . . . . . . . . . . . . . . . . . . . . . . Disarmed . | . . . . . . . . . . . . . . . . . . . . . . . . . . . . . . . . Reprogrammed . | . . . . . . . . . . . . . . . . . . . . . . . . . . . . . . . . Reused . | . . . . . . . . . . . . . . . . . . . . . . . . . . . . . . . . Traps Extracted . | . . . . . . . . . . . . . . . . . . . . . . . . . . . . . . . . Installed 1 | . . . . . . . . . . . . . . . . . . . . . . . . . . . . 1 . . . Triggered 16 | . . . . . . . . . 3 . . . . . . . . . . 1 . 11 . . . 1 . . . . . Most Traps Carried 1 | . . . . . . . . . . . . . . . . . . . . . . . . . . . . 1 . . . Machines | -11 -10 -10 -10 -9 -8 -7 -7 -7 -7 -7 -7 -6 -6 -6 -6 -5 -5 -5 -5 -5 -5 -5 -4 -4 -4 -4 -4 -3 -3 -2 -1 ---------- Run | Yrd Mat Min Exi Min Mat Fac Was Fac Low Low Zio Pro Fac Low Dat Pro Fac Was Fac Upp Upp War Pro Fac Upp Upp Zhi Pro Res Res Acc Machines Disabled 26 | . 5 . . . . 1 . . 1 . . . 5 . . . . . . . . . 3 3 1 . . . 3 1 3 Max in Single Turn 4 | . 4 . . . . 1 . . 1 . . . 1 . . . . . . . . . 1 3 1 . . . 1 1 1 Garrison Access 7 | . . . . . 1 . . . . . . . 1 . . . . . . . . . . . . . . . 2 3 . Machines Repaired . | . . . . . . . . . . . . . . . . . . . . . . . . . . . . . . . . Machines Dismantled . | . . . . . . . . . . . . . . . . . . . . . . . . . . . . . . . . Machines Sabotaged . | . . . . . . . . . . . . . . . . . . . . . . . . . . . . . . . . Overloaded Fab Kills . | . . . . . . . . . . . . . . . . . . . . . . . . . . . . . . . . Hacking | -11 -10 -10 -10 -9 -8 -7 -7 -7 -7 -7 -7 -6 -6 -6 -6 -5 -5 -5 -5 -5 -5 -5 -4 -4 -4 -4 -4 -3 -3 -2 -1 --------- Run | Yrd Mat Min Exi Min Mat Fac Was Fac Low Low Zio Pro Fac Low Dat Pro Fac Was Fac Upp Upp War Pro Fac Upp Upp Zhi Pro Res Res Acc Machines Accessed 74 | . 5 . 3 . 7 5 . 5 . 2 . . 7 . 3 . 3 . 4 . . 2 . 2 2 . 5 . 15 1 3 Terminals 35 | . 4 . . . 6 2 . 4 . . . . 2 . . . 2 . 3 . . . . 1 1 . . . 7 1 2 Fabricators 10 | . . . . . . 3 . . . . . . 3 . . . 1 . . . . . . . . . . . 2 . 1 Repair Stations 3 | . 1 . . . . . . . . . . . . . . . . . . . . . . . . . . . 2 . . Recycling Units 2 | . . . . . . . . . . . . . . . . . . . . . . . . . . . . . 2 . . Scanalyzers 1 | . . . . . . . . . . . . . 1 . . . . . . . . . . . . . . . . . . Garrison Access 7 | . . . . . 1 . . 1 . . . . 1 . . . . . 1 . . . . 1 . . . . 2 . . Total Hacks 180 | . 15 . 6 . 18 13 . 11 . 2 . . 12 . 23 . 5 . 6 . . 2 . 6 3 . 18 . 32 2 6 Successful 105 | . 11 . 6 . 10 4 . 2 . 2 . . 3 . 23 . 4 . . . . 2 . 1 3 . 18 . 13 1 2 Failed 75 | . 4 . . . 8 9 . 9 . . . . 9 . . . 1 . 6 . . . . 5 . . . . 19 1 4 Catastrophic 18 | . 1 . . . 2 2 . 4 . . . . 3 . . . . . 3 . . . . . . . . . 2 . 1 Database Lockouts . | . . . . . . . . . . . . . . . . . . . . . . . . . . . . . . . . Manual 65 | . 8 . 1 . 15 6 . 5 . . . . 6 . . . 4 . 4 . . 1 1 2 . . . . 9 . 3 Terminals 85 | . 13 . . . 17 5 . 8 . . . . 4 . . . 4 . 5 . . . . 2 2 . . . 19 2 4 Fabricators 19 | . . . . . . 8 . . . . . . 4 . . . 1 . . . . . . . . . . . 4 . 2 Repair Stations 6 | . 2 . . . . . . . . . . . . . . . . . . . . . . . . . . . 4 . . Recycling Units 3 | . . . . . . . . . . . . . . . . . . . . . . . . . . . . . 3 . . Scanalyzers 1 | . . . . . . . . . . . . . 1 . . . . . . . . . . . . . . . . . . Garrison Access 14 | . . . . . 1 . . 3 . . . . 3 . . . . . 1 . . . . 4 . . . . 2 . . Terminal Hacks 74 | . 5 . 6 . 5 1 . . . 2 . . 1 . 23 . 1 . . . . 2 . . 3 . 18 . 5 1 1 Record 20 | . . . 5 . . . . . . . . . . . 6 . . . . . . 1 . . 2 . 6 . . . . Part Schematic 15 | . . . . . . . . . . . . . . . 10 . . . . . . . . . . . 4 . 1 . . Robot Schematic 4 | . . . . . . . . . . . . . . . 4 . . . . . . . . . . . . . . . . Robot Analysis 6 | . . . . . 2 . . . . . . . . . . . . . . . . . . . . . 4 . . . . Prototype ID Bank 8 | . 1 . . . . . . . . . . . . . 3 . . . . . . . . . . . 4 . . . . Open Door 5 | . . . . . . . . . . 2 . . 1 . . . . . . . . 1 . . 1 . . . . . . Level Access Points 1 | . . . . . . . . . . . . . . . . . . . . . . . . . . . . . . 1 . Branch Access Points 2 | . . . . . 1 . . . . . . . . . . . . . . . . . . . . . . . 1 . . Alert Level 1 | . . . . . 1 . . . . . . . . . . . . . . . . . . . . . . . . . . Unreport Threat 3 | . 1 . . . 1 . . . . . . . . . . . . . . . . . . . . . . . . . 1 Locate Traps 3 | . 1 . . . . . . . . . . . . . . . 1 . . . . . . . . . . . 1 . . Maintenance Status 1 | . 1 . . . . . . . . . . . . . . . . . . . . . . . . . . . . . . Zone Layout 4 | . 1 . . . . 1 . . . . . . . . . . . . . . . . . . . . . . 2 . . Derelict Proto ID Bank 1 | . . . 1 . . . . . . . . . . . . . . . . . . . . . . . . . . . . Fabricator Hacks 3 | . . . . . . 1 . . . . . . . . . . . . . . . . . . . . . . 2 . . Load Schematic 1 | . . . . . . . . . . . . . . . . . . . . . . . . . . . . . 1 . . Build 2 | . . . . . . 1 . . . . . . . . . . . . . . . . . . . . . . 1 . . Repair Station Hacks 4 | . 2 . . . . . . . . . . . . . . . . . . . . . . . . . . . 2 . . Scan Component 3 | . 1 . . . . . . . . . . . . . . . . . . . . . . . . . . . 2 . . Repair 1 | . 1 . . . . . . . . . . . . . . . . . . . . . . . . . . . . . . Recycling Unit Hacks . | . . . . . . . . . . . . . . . . . . . . . . . . . . . . . . . . Scanalyzer . | . . . . . . . . . . . . . . . . . . . . . . . . . . . . . . . . Garrison Access Hacks 3 | . . . . . 1 . . . . . . . 1 . . . . . . . . . . . . . . . 1 . . Seal Access 3 | . . . . . 1 . . . . . . . 1 . . . . . . . . . . . . . . . 1 . . Unauthorized Hacks 21 | . 4 . . . 4 2 . 2 . . . . 1 . . . 3 . . . . . . 1 . . . . 3 . 1 Terminals 19 | . 4 . . . 4 1 . 2 . . . . 1 . . . 2 . . . . . . 1 . . . . 3 . 1 Track 1 | . . . . . . . . . . . . . . . . . . . . . . . . . . . . . 1 . . Assimilate 1 | . . . . . 1 . . . . . . . . . . . . . . . . . . . . . . . . . . Botnet 14 | . 2 . . . 2 1 . 2 . . . . 1 . . . 2 . . . . . . 1 . . . . 2 . 1 Operators 2 | . 2 . . . . . . . . . . . . . . . . . . . . . . . . . . . . . . Skim 1 | . . . . . 1 . . . . . . . . . . . . . . . . . . . . . . . . . . Fabricators 2 | . . . . . . 1 . . . . . . . . . . 1 . . . . . . . . . . . . . . Fabnet 2 | . . . . . . 1 . . . . . . . . . . 1 . . . . . . . . . . . . . . Repair Stations . | . . . . . . . . . . . . . . . . . . . . . . . . . . . . . . . . Recycling Units . | . . . . . . . . . . . . . . . . . . . . . . . . . . . . . . . . Scanalyzers . | . . . . . . . . . . . . . . . . . . . . . . . . . . . . . . . . Garrison Access . | . . . . . . . . . . . . . . . . . . . . . . . . . . . . . . . . Data Cores Recovered 2 | . . . . . 1 . . . . . . . . . . . . . . . . . . 1 . . . . . . . Used 1 | . . . . . 1 . . . . . . . . . . . . . . . . . . . . . . . . . . Hacking Detections 56 | . 5 . . . 6 5 . 5 . . . . 7 . . . 3 . 4 . . . . 2 1 . . . 14 1 3 Full Trace Events 5 | . . . . . . . . . . . . . . . . . . . . . . . . . . . . . 4 . 1 Feedback Events . | . . . . . . . . . . . . . . . . . . . . . . . . . . . . . . . . Feedback Blocked . | . . . . . . . . . . . . . . . . . . . . . . . . . . . . . . . . Robot Schematics Acquired 4 | . . . . . . . . . . . . . . . 4 . . . . . . . . . . . . . . . . Robots Built . | . . . . . . . . . . . . . . . . . . . . . . . . . . . . . . . . Authchips . | . . . . . . . . . . . . . . . . . . . . . . . . . . . . . . . . Time . | . . . . . . . . . . . . . . . . . . . . . . . . . . . . . . . . Total Robot Build Rating . | . . . . . . . . . . . . . . . . . . . . . . . . . . . . . . . . Part Schematics Acquired 15 | . . . . . . . . . . . . . . . 10 . . . . . . . . . . . 4 . 1 . . Parts Built 2 | . . . . . . 1 . . . . . . . . . . . . . . . . . . . . . . 1 . . Authchips . | . . . . . . . . . . . . . . . . . . . . . . . . . . . . . . . . Time 271 | . . . . . . 84 . . . . . . . . . . . . . . . . . . . . . . 187 . . Total Part Build Rating 11 | . . . . . . 4 . . . . . . . . . . . . . . . . . . . . . . 7 . . Parts Repaired 1 | . 1 . . . . . . . . . . . . . . . . . . . . . . . . . . . . . . Time 26 | . 26 . . . . . . . . . . . . . . . . . . . . . . . . . . . . . . Parts Recycled . | . . . . . . . . . . . . . . . . . . . . . . . . . . . . . . . . Recycled Matter . | . . . . . . . . . . . . . . . . . . . . . . . . . . . . . . . . Retrieved Matter . | . . . . . . . . . . . . . . . . . . . . . . . . . . . . . . . . Retrieved Components . | . . . . . . . . . . . . . . . . . . . . . . . . . . . . . . . . Parts Scanalyzed . | . . . . . . . . . . . . . . . . . . . . . . . . . . . . . . . . Part Schematics Acquired . | . . . . . . . . . . . . . . . . . . . . . . . . . . . . . . . . Parts Damaged . | . . . . . . . . . . . . . . . . . . . . . . . . . . . . . . . . Bothacking | -11 -10 -10 -10 -9 -8 -7 -7 -7 -7 -7 -7 -6 -6 -6 -6 -5 -5 -5 -5 -5 -5 -5 -4 -4 -4 -4 -4 -3 -3 -2 -1 ------------ Run | Yrd Mat Min Exi Min Mat Fac Was Fac Low Low Zio Pro Fac Low Dat Pro Fac Was Fac Upp Upp War Pro Fac Upp Upp Zhi Pro Res Res Acc Used RIF Installer . | . . . . . . . . . . . . . . . . . . . . . . . . . . . . . . . . Robots Hacked 7 | . . . . . . . . . . . . . 3 . . . . . . . . . . . . 2 . . 2 . . Non-combat . | . . . . . . . . . . . . . . . . . . . . . . . . . . . . . . . . Combat 7 | . . . . . . . . . . . . . 3 . . . . . . . . . . . . 2 . . 2 . . Robot Hacks Applied . | . . . . . . . . . . . . . . . . . . . . . . . . . . . . . . . . Relay Couplers Released 8 | . . . . . . . . . . . . . . . . . . . . . . . . . . . . . 3 5 . Machine Destruction 8 | . . . . . . . . . . . . . . . . . . . . . . . . . . . . . 3 5 . Fabnet Peak Effective % 3 | . . . . . . . . . . . . 3 3 3 3 1 1 1 1 1 1 1 3 3 3 3 3 1 1 . . Autooverrided 7 | . . . . . . . . . . . . . 3 . . . . . . . . . . . . 2 . . 2 . . Robots Rewired 11 | . . . . . . . . . 2 . . . . . . . . . . . . 5 2 . . 2 . . . . . Allies Hacked . | . . . . . . . . . . . . . . . . . . . . . . . . . . . . . . . . Hacks Repelled . | . . . . . . . . . . . . . . . . . . . . . . . . . . . . . . . . Allies | -11 -10 -10 -10 -9 -8 -7 -7 -7 -7 -7 -7 -6 -6 -6 -6 -5 -5 -5 -5 -5 -5 -5 -4 -4 -4 -4 -4 -3 -3 -2 -1 -------- Run | Yrd Mat Min Exi Min Mat Fac Was Fac Low Low Zio Pro Fac Low Dat Pro Fac Was Fac Upp Upp War Pro Fac Upp Upp Zhi Pro Res Res Acc Total Allies 39 | . . 2 . 3 . . . . 2 . . . 4 . . . . . . . . 5 2 15 . 4 . . 2 . . Largest Group 9 | . . 2 1 3 3 2 . . 2 . . . 2 1 1 1 1 1 . . . 5 3 9 . 2 2 2 1 . . Highest-Rated Group 391 | . . 53 31 40 40 24 . . 52 . . . 128 99 99 99 99 92 . . . 288 179 391 . 96 96 96 64 . . Highest-Rated Ally 99 | . . 31 31 16 16 16 . . 32 . . . 99 99 99 99 99 92 . . . 68 65 49 . 49 49 49 64 . . Total Orders 9 | . . . . . 2 . . . . . . . . . . . . . . . . . . 1 . . . 3 2 1 . STAY 3 | . . . . . 1 . . . . . . . . . . . . . . . . . . . . . . 2 . . . FOLLOW 1 | . . . . . . . . . . . . . . . . . . . . . . . . . . . . 1 . . . AID 2 | . . . . . 1 . . . . . . . . . . . . . . . . . . 1 . . . . . . . EXPLORE 1 | . . . . . . . . . . . . . . . . . . . . . . . . . . . . . 1 . . RETURN 2 | . . . . . . . . . . . . . . . . . . . . . . . . . . . . . 1 1 . Ally Attacks 198 | . . 3 . . 38 9 . . 3 . . . 15 6 . 5 19 . . . . 25 18 28 . 10 . 12 3 4 . Total Damage 8144 | . . 40 . . 419 92 . . 57 . . . 824 606 . 412 1129 . . . . 1620 669 1018 . 727 . 401 118 12 . Kills 50 | . . 1 . . 6 . . . 1 . . . 8 4 . 2 12 . . . . 7 2 3 . 3 . 1 . . . Allies Corrupted 2 | . . . . . . . . . . . . . . . . . . . . . . . . 1 . 1 . . . . . Allies Melted 1 | . . . . . . . . . . . . . . . . . . . . . . 1 . . . . . . . . . Intel | -11 -10 -10 -10 -9 -8 -7 -7 -7 -7 -7 -7 -6 -6 -6 -6 -5 -5 -5 -5 -5 -5 -5 -4 -4 -4 -4 -4 -3 -3 -2 -1 ------- Run | Yrd Mat Min Exi Min Mat Fac Was Fac Low Low Zio Pro Fac Low Dat Pro Fac Was Fac Upp Upp War Pro Fac Upp Upp Zhi Pro Res Res Acc Robot Analysis Total 6 | . . . . . 2 . . . . . . . . . . . . . . . . . . . . . 4 . . . . Derelict Logs Recovered 16 | . . . . 3 . . . . . . 1 2 . 1 . 1 . . . 2 1 . 2 . 2 1 . . . . . Drone Launches 4 | . . . . . . . . . . . . . . . . . . . . . . . . . . 1 . . 1 2 . Drone Recoveries 3 | . . . . . . . . . . . . . . . . . . . . . . . . . . . . . 1 2 . Exploration | -11 -10 -10 -10 -9 -8 -7 -7 -7 -7 -7 -7 -6 -6 -6 -6 -5 -5 -5 -5 -5 -5 -5 -4 -4 -4 -4 -4 -3 -3 -2 -1 ------------- Run | Yrd Mat Min Exi Min Mat Fac Was Fac Low Low Zio Pro Fac Low Dat Pro Fac Was Fac Upp Upp War Pro Fac Upp Upp Zhi Pro Res Res Acc Turns Passed 29402 | 245 546 80 327 310 505 1119 120 1484 678 347 858 508 2353 302 121 653 677 108 339 752 407 1011 1569 1110 1587 1132 356 1204 5651 727 2216 Spaces Moved 16437 | 116 352 65 358 273 295 753 90 939 422 209 667 272 1225 206 98 455 449 71 263 362 195 601 1054 600 833 552 184 694 2663 360 761 Core 89 | 2 . . . . . . . . . . . . . . . . . . . . . . . . . 2 . . . . 85 Treads 3427 | 114 123 . . . 84 . . . . . . . . . . . . . . . . . . . . . . . 2070 360 676 Legs 7524 | . . . . . . . . 644 422 209 667 272 924 . . . 389 71 263 362 195 601 1054 493 . 21 . 529 408 . . Wheels 5397 | . 229 65 358 273 211 753 90 295 . . . . 301 206 98 455 60 . . . . . . 107 833 529 184 165 185 . . Hover . | . . . . . . . . . . . . . . . . . . . . . . . . . . . . . . . . Flight . | . . . . . . . . . . . . . . . . . . . . . . . . . . . . . . . . Fastest Speed 50 | 50 90 105 90 105 105 105 115 115 126 126 126 126 115 115 115 115 108 120 120 195 195 112 110 106 110 90 170 120 120 152 50 Average Speed 143 | 158 120 105 90 105 143 127 125 129 146 154 126 171 164 128 116 129 118 120 120 195 195 145 111 130 169 169 170 138 155 177 151 Slowest Speed 1200 | 160 160 105 105 105 240 130 130 196 196 196 126 200 340 130 130 130 190 120 120 195 195 195 187 190 190 1200 210 210 240 255 240 Overloaded Moves . | . . . . . . . . . . . . . . . . . . . . . . . . . . . . . . . . Propulsion Burnouts . | . . . . . . . . . . . . . . . . . . . . . . . . . . . . . . . . Robots Hopped . | . . . . . . . . . . . . . . . . . . . . . . . . . . . . . . . . Cave-ins Triggered 1 | . . . . . . . . . . . . . . . . . . . . . . . . . . . . . . 1 . Teleports 1 | . . . . . . . . . . . . . . . . . . . . . . . . . . . . . 1 . . Exploration Rate (%) 47 | 8 67 16 78 57 29 19 61 22 55 33 65 57 21 33 71 64 11 75 5 64 39 77 95 13 67 66 62 78 65 15 16 Regions Visited 31 Branch Regions 18 Pre-discovered Areas 8 | . . . 1 1 . . . . . . . . . . 1 . . . . . . . 1 . 1 . 3 . . . . Known Exits Taken 6 | . . . . . . . . . . . . . . . . . . . 1 1 . . . 1 1 . . 1 . 1 . Unknown Exits Taken 21 | 1 1 1 1 1 1 . . 1 1 1 1 1 1 1 1 1 . . . . 1 1 1 . . 1 1 . 1 . . Scrap Searched 32 | . . . . 2 . . . . 2 5 4 2 . 2 . . . . . 2 1 . 1 . 5 2 . 4 . . . Spaces Dug 142 | . 1 . . . . 1 . 5 23 . . . 3 . . 12 2 2 1 . . . . 7 20 . . 6 42 4 13 Terrain Destroyed 706 | . 68 13 . . 1 1 6 5 62 . . 34 12 3 . 13 5 3 1 27 33 11 3 70 181 43 . 16 49 4 42 Melee 77 | . 1 . . . . 1 . 5 . . . . 3 . . . . . 1 . . . . 7 . . . . 42 4 13 Projectile 99 | . . . . . . . . . . . . . . 3 . 1 5 3 . 4 11 11 2 7 27 . . 16 1 . 8 AOE 530 | . 67 13 . . 1 . 6 . 62 . . 34 9 . . 12 . . . 23 22 . 1 56 154 43 . . 6 . 21 Terrain Rammed . | . . . . . . . . . . . . . . . . . . . . . . . . . . . . . . . . Walls Destroyed . | . . . . . . . . . . . . . . . . . . . . . . . . . . . . . . . . Machines Disabled . | . . . . . . . . . . . . . . . . . . . . . . . . . . . . . . . . Actions | -11 -10 -10 -10 -9 -8 -7 -7 -7 -7 -7 -7 -6 -6 -6 -6 -5 -5 -5 -5 -5 -5 -5 -4 -4 -4 -4 -4 -3 -3 -2 -1 --------- Run | Yrd Mat Min Exi Min Mat Fac Was Fac Low Low Zio Pro Fac Low Dat Pro Fac Was Fac Upp Upp War Pro Fac Upp Upp Zhi Pro Res Res Acc Total 20624 | 145 423 72 364 295 348 890 94 1166 470 231 687 291 1455 228 105 507 571 78 283 393 210 720 1303 792 919 674 213 841 3860 422 1574 Wait 1992 | . 30 4 . 17 12 49 . 140 5 7 . . 101 3 . 21 67 . . 15 2 12 115 55 2 4 . 34 733 21 543 Move 16408 | 115 351 64 357 272 294 753 89 938 421 208 666 271 1224 205 97 454 449 70 262 361 194 600 1053 599 832 551 183 693 2662 359 761 Hop . | . . . . . . . . . . . . . . . . . . . . . . . . . . . . . . . . Pick Up 259 | 6 8 1 1 3 9 16 1 20 3 4 5 1 9 6 . 3 11 . 7 2 1 5 5 9 4 10 5 17 52 7 28 Fast Attach 161 | 7 1 . . . 1 8 . 2 . 1 3 . 9 1 4 5 2 1 . . . 1 15 18 7 16 2 14 29 3 11 Attach 169 | . 3 . 2 . 3 2 1 9 1 . . 2 13 1 . 4 4 . 1 2 . . 10 7 7 8 4 8 33 5 39 Detach 48 | . . . 2 . . 3 . . . . . . 5 . . 2 2 . . . . . 7 1 1 4 4 1 10 2 4 Swap 264 | 1 5 1 . 2 5 10 . 15 6 2 4 5 15 3 . 1 12 . 3 2 3 10 6 18 8 5 4 17 70 9 22 Drop 237 | . 1 . 1 1 7 25 1 16 3 7 9 . 13 1 4 6 11 . 6 2 2 16 10 17 5 2 1 11 51 . 8 Fire 781 | 16 21 2 . . 17 8 2 19 10 2 . 12 60 8 . 11 13 7 3 9 8 12 43 49 53 34 . 45 171 12 134 Melee 157 | . 3 . . . . 6 . 5 . . . . 3 . . . . . 1 . . . 31 19 . 15 9 . 44 4 17 Ram . | . . . . . . . . . . . . . . . . . . . . . . . . . . . . . . . . Kick 10 | . . . . . . . . 2 1 . . . 3 . . . . . . . . . . . . . . . 4 . . Crush 8 | . . . . . . . . . . . . . . . . . . . . . . . . . . . . . 1 . 7 Escape Stasis 8 | . . . . . . 8 . . . . . . . . . . . . . . . . . . . . . . . . . Rewire 121 | . . . 1 . . 2 . . 20 . . . . . . . . . . . . 64 8 . . 25 1 . . . . Trap 1 | . . . . . . . . . . . . . . . . . . . . . . . . . . . . 1 . . . Miscellaneous . | . . . . . . . . . . . . . . . . . . . . . . . . . . . . . . . . Route ------- -11/Scrapyard -10/Materials (discovered 3 exits: [*Mat x2] / [*Min]) -10/Mines -10/Exiles -9/Mines -8/Materials -7/Factory (discovered 2 exits: [*Low x2]) -7/Waste -7/Factory -7/Lower Caves -7/Lower Caves -7/Zion -6/Proximity Caves -6/Factory (discovered 2 exits: [*Low] / [*Ext]) -6/Lower Caves -6/Data Miner -5/Proximity Caves -5/Factory -5/Waste -5/Factory -5/Upper Caves -5/Upper Caves (discovered 2 exits: *Fac / *War) -5/Warlord -4/Proximity Caves -4/Factory (discovered 3 exits: *Res x2 / *Upp) -4/Upper Caves -4/Upper Caves -4/Zhirov -3/Proximity Caves -3/Research (discovered 4 exits: *Res / *Arm / Tes x2) -2/Research (discovered 3 exits: *Acc x3) -1/Access History --------- Turn | Location | Event 25 | -11/Scrapyard | Discovered new exit (range 16) 246 | -11/Scrapyard | Entered Materials 314 | -10/Materials | Build established: Mutant 394 | -10/Materials | Discovered new exit (range 11) 542 | -10/Materials | Repaired Seismic Detector 554 | -10/Materials | Discovered new exit (range 15) 684 | -10/Materials | Discovered new exit (range 7) 792 | -10/Materials | Entered Mines 813 | -10/Mines | Met a Derelict bent on vengeance 820 | -10/Mines | Deemed a non-threat by the Exiles lab entrance 840 | -10/Mines | Found a damaged Exp. Sensor Array with a note attached 842 | -10/Mines | Found Prototype Device 845 | -10/Mines | Assembled infested the area 864 | -10/Mines | Discovered new exit (range 5) 872 | -10/Mines | Entered Exiles 872 | -10/Exiles | Accompanied by 1 ally 896 | -10/Exiles | Met 8R-AWN 902 | -10/Exiles | Led the pair of lost Derelicts to a safe place 909 | -10/Exiles | Met EX-HEX 937 | -10/Exiles | Met EX-BIN 947 | -10/Exiles | Aligned with FarCom system 948 | -10/Exiles | Given EX-Vault access code 970 | -10/Exiles | Opened EX-Vault 977 | -10/Exiles | Found Superbattery 1022 | -10/Exiles | Warned to stay clear of 0b10 Research branches 1046 | -10/Exiles | Met EX-DEC 1060 | -10/Exiles | Learned location of Zion (-7) 1104 | -10/Exiles | Visited The Gauntlet 1190 | -10/Exiles | Discovered new exit (range 10) 1199 | -10/Exiles | Left Exiles lab with Superbattery 1199 | -10/Exiles | Entered Mines 1277 | -9/Mines | Discovered new exit (range 9) 1384 | -9/Mines | Learned Materials terminal intel 1404 | -9/Mines | Assisted by bots powering up and referring to "LRC-V3" 1509 | -9/Mines | Entered Materials 1509 | -8/Materials | Accompanied by 3 allies 1509 | -8/Materials | Evolved 4 slots: Propulsion x1, Utility x3 1510 | -8/Materials | Loaded intel: 12 terminal locations 1815 | -8/Materials | Discovered new exit (range 10) 2014 | -8/Materials | Entered Factory 2014 | -7/Factory | Accompanied by 2 allies 2014 | -7/Factory | Evolved 2 slots: Utility x1, Weapon x1 2068 | -7/Factory | Build established: Scavenger-Skirmisher 2292 | -7/Factory | Discovered new exit (range 16) 2545 | -7/Factory | Discovered new exit (range 5) 2574 | -7/Factory | Build established: Tank 2676 | -7/Factory | P-60 Hacker assimilated allied Mercenary 2a 3008 | -7/Factory | Fabricated Hvy. Rocket Launcher? 3133 | -7/Factory | Sucked down chute 3133 | -7/Factory | Entered Waste 3201 | -7/Waste | Spotted C-40 Crusher 3203 | -7/Waste | Spotted C-40 Crusher 3205 | -7/Waste | Spotted C-40 Crusher 3213 | -7/Waste | Spotted C-40 Crusher 3217 | -7/Waste | Spotted C-40 Crusher 3219 | -7/Waste | Crushed by Compactor (1 part destroyed, 2 dropped) 3224 | -7/Waste | Crushed by Compactor (1 part destroyed, 1 dropped) 3230 | -7/Waste | Crushed by Compactor (1 part destroyed, 2 dropped) 3236 | -7/Waste | Discovered new exit (range 16) 3242 | -7/Waste | Spotted C-40 Crusher 3253 | -7/Waste | Entered Factory 3261 | -7/Factory | Lost 3 parts (2u1w) 3777 | -7/Factory | System corruption reached 10% 4638 | -7/Factory | Discovered new exit (range 10) 4737 | -7/Factory | Entered Lower Caves 5164 | -7/Lower Caves | Attracted the attention of an 0b10 outpost 5218 | -7/Lower Caves | Destroyed 7 combat bots 5347 | -7/Lower Caves | Discovered new exit (range 6) 5415 | -7/Lower Caves | Entered another Lower Caves area 5463 | -7/Lower Caves | Found Prototype Device 5463 | -7/Lower Caves | Identified Heart of Steel 5745 | -7/Lower Caves | Discovered new exit (range 15) 5750 | -7/Lower Caves | Build established: Gunner 5762 | -7/Lower Caves | Entered Zion 5807 | -7/Zion | Found Relay Coupler [Programmer] 5816 | -7/Zion | Found Relay Coupler [Programmer] 5827 | -7/Zion | Found Relay Coupler [Programmer] 5895 | -7/Zion | Discovered new exit (range 10) 5975 | -7/Zion | System corruption cleaned by Quarantine Array 6057 | -7/Zion | Learned Factory stockpile data 6620 | -7/Zion | Entered Proximity Caves 6798 | -6/Proximity Caves | Learned Factory non-interactive machine intel 6828 | -6/Proximity Caves | Spotter reported a threat 7018 | -6/Proximity Caves | Discovered new exit (range 16) 7101 | -6/Proximity Caves | Build established: Tank 7128 | -6/Proximity Caves | Entered Factory 7128 | -6/Factory | Evolved 2 slots: Utility x1, Weapon x1 7130 | -6/Factory | Loaded intel: 197 non-interactive machine locations 7273 | -6/Factory | Discovered new exit (range 6) 7284 | -6/Factory | Discovered new exit (range 16) 7623 | -6/Factory | Build established: Skirmisher 8945 | -6/Factory | Assembled infested ambush trap array 9006 | -6/Factory | Destroyed 12 combat bots 9029 | -6/Factory | Lost 8 parts (1p1n2u4w) 9062 | -6/Factory | Heart of Steel transformed into Warbot 9147 | -6/Factory | Local machine network offline 9481 | -6/Factory | Entered Lower Caves 9481 | -6/Lower Caves | Accompanied by 1 ally (Warbot) 9522 | -6/Lower Caves | Learned Factory terminal intel 9736 | -6/Lower Caves | A Derelict revealed a hidden shortcut to meet someone special 9783 | -6/Lower Caves | Entered Data Miner 9783 | -6/Data Miner | Accompanied by 1 ally (Warbot) 9786 | -6/Data Miner | Discovered new exit (range 6) 9807 | -6/Data Miner | Met Data Miner 9831 | -6/Data Miner | Learned location of Section 7 (-2) 9831 | -6/Data Miner | Acquired the access code to Warlord's prototype stash 9852 | -6/Data Miner | Received God Mode back door access code from Data Miner 9904 | -6/Data Miner | Entered Proximity Caves 9904 | -5/Proximity Caves | Accompanied by 1 ally (Warbot) 10187 | -5/Proximity Caves | Build established: Scavenger-Gunner 10442 | -5/Proximity Caves | Discovered new exit (range 13) 10454 | -5/Proximity Caves | Learned Factory stockpile data 10557 | -5/Proximity Caves | Entered Factory 10557 | -5/Factory | Accompanied by 1 ally (Warbot) 10557 | -5/Factory | Evolved 2 slots: Propulsion x1, Utility x1 10558 | -5/Factory | Identified exit to Upper Caves 10560 | -5/Factory | Loaded intel: 26 terminal locations 11234 | -5/Factory | Sucked down chute 11234 | -5/Factory | Entered Waste 11241 | -5/Waste | Spotted C-40 Crusher 11249 | -5/Waste | EMP discharged 11249 | -5/Waste | System corruption reached 10% 11259 | -5/Waste | Destroyed C-40 Crusher 11259 | -5/Waste | Spotted C-40 Crusher 11278 | -5/Waste | Spotted C-40 Crusher 11299 | -5/Waste | 1 allies followed down the chute 11304 | -5/Waste | Spotted C-40 Crusher 11310 | -5/Waste | Spotted C-40 Crusher 11319 | -5/Waste | Spotted C-40 Crusher 11330 | -5/Waste | Discovered new exit (range 10) 11342 | -5/Waste | Entered Factory 11633 | -5/Factory | Discovered exit to Upper Caves (range 15) 11681 | -5/Factory | Entered Upper Caves 11957 | -5/Upper Caves | Attracted the attention of an 0b10 checkpoint 12132 | -5/Upper Caves | Core integrity fell below 50% 12361 | -5/Upper Caves | Identified exit to Upper Caves 12406 | -5/Upper Caves | Learned location of 1 exit from Factory 12433 | -5/Upper Caves | Entered another Upper Caves area 12485 | -5/Upper Caves | Discovered new exit (range 6) 12756 | -5/Upper Caves | Learned 4 Factory zone layouts 12824 | -5/Upper Caves | Discovered new exit (range 8) 12840 | -5/Upper Caves | Entered Warlord 12907 | -5/Warlord | System corruption cleaned by Quarantine Array 13087 | -5/Warlord | Found Prototype Device 13235 | -5/Warlord | Met Warlord 13260 | -5/Warlord | Warlord's base attacked by MAIN.C 13262 | -5/Warlord | Opened Warlord's prototype stash 13271 | -5/Warlord | Found Prototype Reactor 13288 | -5/Warlord | Found Prototype Device 13288 | -5/Warlord | Identified Exp. Cloaking Device 13299 | -5/Warlord | Found Prototype Device 13299 | -5/Warlord | Identified System Purifier 13610 | -5/Warlord | Warlord forces counterattacked 13699 | -5/Warlord | Lost 5 allies 13702 | -5/Warlord | Spotted Striker 13712 | -5/Warlord | Allies destroyed Striker 13716 | -5/Warlord | Spotted Executioner 13726 | -5/Warlord | Build established: Commander-Gunner 13752 | -5/Warlord | Discovered new exit (range 14) 13758 | -5/Warlord | Lost 3 allies 13760 | -5/Warlord | Spotted Striker 13760 | -5/Warlord | Spotted Executioner 13772 | -5/Warlord | Allies destroyed Executioner 13828 | -5/Warlord | Lost 6 allies 13851 | -5/Warlord | Entered Proximity Caves 13851 | -4/Proximity Caves | Accompanied by 3 allies 13859 | -4/Proximity Caves | Learned Research emergency access door positions 13874 | -4/Proximity Caves | Learned location of Armory (-3) 13886 | -4/Proximity Caves | Acquired the password to a Derelict Tinkerer's latest research 13896 | -4/Proximity Caves | Found Prototype Special Weapon 13896 | -4/Proximity Caves | Identified Molecular Deconstructor 14042 | -4/Proximity Caves | Attracted the attention of an 0b10 checkpoint 14162 | -4/Proximity Caves | Build established: Scavenger-Tank 14265 | -4/Proximity Caves | Caught by Unaware searching for contraband prototypes 14336 | -4/Proximity Caves | Caught by Unaware searching for contraband prototypes 14408 | -4/Proximity Caves | Lost 3 allies 14435 | -4/Proximity Caves | Lost 5 parts (1n2u2w) 15355 | -4/Proximity Caves | Discovered new exit (range 16) 15417 | -4/Proximity Caves | Build established: Scavenger-Gunner 15420 | -4/Proximity Caves | Entered Factory 15420 | -4/Factory | Accompanied by 2 allies 15420 | -4/Factory | Evolved 2 slots: Power x1, Utility x1 15421 | -4/Factory | Identified exit to Upper Caves 15421 | -4/Factory | Identified Vortex Chain Reactor 15422 | -4/Factory | Identified exit to Research 15505 | -4/Factory | Allied Derelicts emerged from ambush trap array 15752 | -4/Factory | P-70 Sage assimilated allied WH-3H7(g) 15803 | -4/Factory | Lost 3 allies 15877 | -4/Factory | Lost 6 parts (1n1u4w) 16054 | -4/Factory | System corruption reached 10% 16090 | -4/Factory | Lost 5 parts (2n2u1w) 16349 | -4/Factory | Garrison activated, responded to threat 16527 | -4/Factory | Discovered exit to Research (range 11) 16530 | -4/Factory | Entered Upper Caves 16687 | -4/Upper Caves | Build established: Scavenger-Tank 17348 | -4/Upper Caves | Spotted B-86 Titan 17453 | -4/Upper Caves | Learned location of Quarantine (-2) 17496 | -4/Upper Caves | Learned Research emergency access door positions 17644 | -4/Upper Caves | Attracted the attention of an 0b10 base 17721 | -4/Upper Caves | Lost 3 parts (1p1n1w) 18012 | -4/Upper Caves | Build established: Derelict-Tank 18046 | -4/Upper Caves | Lost 4 parts (1n2u1w) 18081 | -4/Upper Caves | Discovered new exit (range 14) 18098 | -4/Upper Caves | Core integrity fell below 50% 18115 | -4/Upper Caves | Identified exit to Upper Caves 18117 | -4/Upper Caves | Entered another Upper Caves area 18122 | -4/Upper Caves | Destroyed 8 combat bots 18130 | -4/Upper Caves | Lost 4 parts (1p1u2w) 18351 | -4/Upper Caves | Attracted the attention of an 0b10 outpost 18421 | -4/Upper Caves | Identified Wardrone Bay 18482 | -4/Upper Caves | Lost 9 parts (2p2n5w) 18793 | -4/Upper Caves | Build established: Derelict-Mutant 18877 | -4/Upper Caves | Discovered new exit (range 8) 18922 | -4/Upper Caves | Learned 4 Research zone layouts 19249 | -4/Upper Caves | Entered Zhirov 19249 | -4/Zhirov | Accompanied by 2 allies 19252 | -4/Zhirov | Discovered new exit (range 3) 19282 | -4/Zhirov | Met Zhirov 19328 | -4/Zhirov | Found Alien Artifact 19328 | -4/Zhirov | Identified Integrated Reactor 19328 | -4/Zhirov | Installed Integrated Reactor, increased core energy generation (+10) 19349 | -4/Zhirov | Found Alien Artifact 19530 | -4/Zhirov | Learned location of Command (-1) 19530 | -4/Zhirov | Learned location of Testing (-3) 19546 | -4/Zhirov | Zhirov requested help retrieving the SGEMP Prototype 19561 | -4/Zhirov | Build established: Scavenger-Mutant 19605 | -4/Zhirov | Entered Proximity Caves 19605 | -3/Proximity Caves | Accompanied by 2 allies 19914 | -3/Proximity Caves | Build established: Scavenger-Tank 20000 | -3/Proximity Caves | Lost 3 parts (1p2u) 20037 | -3/Proximity Caves | Core integrity fell below 20% 20067 | -3/Proximity Caves | Lost 3 parts (1n2w) 20164 | -3/Proximity Caves | Spotted B-86 Titan 20334 | -3/Proximity Caves | Lost 4 parts (1p2u1w) 20410 | -3/Proximity Caves | Lost 6 parts (2n1u3w) 20753 | -3/Proximity Caves | Attracted the attention of an 0b10 checkpoint 20795 | -3/Proximity Caves | Discovered exit to Research (range 8) 20807 | -3/Proximity Caves | System corruption reached 30% 20809 | -3/Proximity Caves | Entered Research 20809 | -3/Research | Evolved 2 slots: Utility x2 20910 | -3/Research | Discovered new exit (range 15) 20925 | -3/Research | Identified Transdimensional Reconstructor 20925 | -3/Research | Warped through subspace 20953 | -3/Research | Lost 3 parts (1n2u) 21489 | -3/Research | Build established: Scavenger-Gunner 21801 | -3/Research | Lost 4 parts (1n2u1w) 22280 | -3/Research | Build established: Hacker-Tank 23430 | -3/Research | Found Prototype Device 23430 | -3/Research | Identified System Purifier 23742 | -3/Research | Identified exit to Armory 23742 | -3/Research | Identified exit to Testing 24409 | -3/Research | Fabricated Assault Drone Bay? 24414 | -3/Research | Build established: Hacker-Gunner 24503 | -3/Research | System corruption reached 10% 25074 | -3/Research | Build established: Hacker-Tank 25133 | -3/Research | Garrison activated, responded to threat 25309 | -3/Research | First assault squad dispatched 25665 | -3/Research | Destroyed 8 combat bots 25852 | -3/Research | Lost 3 parts (1p2n) 25881 | -3/Research | Build established: Hacker-Gunner 25905 | -3/Research | Core integrity fell below 50% 26068 | -3/Research | System corruption reached 30% 26198 | -3/Research | Build established: Tank 26333 | -3/Research | Incoming assault squad redirected 26403 | -3/Research | Discovered new exit (range 18) 26460 | -3/Research | Entered another Research area 26460 | -2/Research | Warlord forces began assault on 0b10 26460 | -2/Research | Evolved 2 slots: Power x1, Utility x1 26474 | -2/Research | Found Prototype Device 26474 | -2/Research | Identified Exp. Force Field 26506 | -2/Research | Identified exit to Access 26570 | -2/Research | Research machine network offline 26631 | -2/Research | Build established: Scavenger-Tank 26755 | -2/Research | Spotted Executioner 26759 | -2/Research | Spotted Striker 26761 | -2/Research | Crushed by falling debris 26765 | -2/Research | Destroyed Striker 26775 | -2/Research | Destroyed Executioner 26808 | -2/Research | Lost 4 parts (1u3w) 26810 | -2/Research | Destroyed 7 combat bots 26985 | -2/Research | Borebot progress halted 27008 | -2/Research | Lost 3 allies 27018 | -2/Research | Found Prototype Processor 27018 | -2/Research | Identified Spectral Analyzer 27086 | -2/Research | Found Prototype Hackware 27086 | -2/Research | Identified Exp. Hacking Suite 27104 | -2/Research | Spotted Striker 27172 | -2/Research | Lost 4 allies 27187 | -2/Research | Entered Access 27187 | -1/Access | Evolved 2 slots: Utility x1, Weapon x1 27476 | -1/Access | Incoming investigation squad redirected 27525 | -1/Access | Build established: Hacker-Tank 27579 | -1/Access | Lost 3 parts (1p2u) 27617 | -1/Access | Lost 6 allies 27937 | -1/Access | First assault squad dispatched 28217 | -1/Access | Build established: Scavenger-Tank 28239 | -1/Access | Incoming assault squad redirected 28525 | -1/Access | System corruption reached 10% 28672 | -1/Access | Lost 10 parts (3p2u5w) 28784 | -1/Access | Lost 4 parts (1p1n1u1w) 28864 | -1/Access | Lost 3 parts (1n2w) 29028 | -1/Access | Garrison activated, responded to threat 29100 | -1/Access | Build established: Scavenger-Gunner 29231 | -1/Access | Incoming assault squad redirected 29235 | -1/Access | Incoming assault squad redirected 29296 | -1/Access | System corruption reached 30% 29311 | -1/Access | Core integrity fell below 50% 29339 | -1/Access | Lost 20 parts (4p2n5u9w) 29364 | -1/Access | Core integrity fell below 20% 29403 | -1/Access | Destroyed by S-43 Plague with Heavy Machine Gun Last Messages --------------- 29390_ Slammed into H-88 Terminator. 29391_ M-36 Artificer repairs P-80 Master. 29391_ Slammed into H-88 Terminator. 29391_ Penetrated by Slug. 29391_ M-36 Artificer suffers critical hit (Destroy). 29391_ Penetrated by Slug. 29392_ System corrupted: Matter fused (-7). 29392_ Biometal Medium Treads destroyed. 29393_ M-36 Artificer repairs Adv. Heat Sink. 29393_ Slammed into S-43 Plague. 29394_ Penetrated by Slug. 29398_ Adv. Heavy Siege Treads destroyed. 29398_ Penetrated by Slug. 29398_ P-80 Master resets S-43 Plague, system corruption cleaned. 29399_ Slammed into P-80 Master. 29399_ P-80 Master knocked back. 29401_ Slammed into P-80 Master. 29401_ Penetrated by Slug. 29401_ Slug penetrates Wall. [Achievement: 30k Club] Map ----- +----------------------------------------------------+ | ?????????????????????????????????????????????????? | | ?????????????????????? ??????????????????????????? | | ?????????????????????? ??????????????????????????? | | ????????????????????? ??????????????????????????? | | ???????????????????? ??????????????????????????? | | ????????????????????? ??????????????????????????? | | ????????????????????? ??????????????????????????? | | ????????????????????? R??????????????????????????? | | ????????????????????? ??????????????????????????? | | ?????????????????????t ??????????????????????????? | | ##################????R####??????????????????????? | | ??R ??????????????????????? | | ? ??????????????????????? | | w ? ???????p??????????????? | | ##########/####???????# #??????????????????????? | | ##????????# #??????????????????????? | | ##???????# #??????????????????????? | | # ######### #??????????????????????? | | ## #A #??????????????????????? | | ## == # #??????????????????????? | | ## = # #??????????????????????? | | ## # #??????????????????????? | | ]= ## = # #??????????????????????? | | ]! ## # #??????????????????????? | | ## / #???p??????????????????? | | ## # @#?#########????????????? | | ##############! # p #?#s ! #????????????? | | ?????????????###+###### s### #????????????? | | ????????????????????# # ! #????????????? | | ????????????????????# s # s #????????????? | | ????????????BB??????# p # #????????????? | | ????????????BB?# #### + #????????????? | | ??????????# # #????????????? | | ??????????# h # = #????????????? | | ??????????# ! # #????????????? | | ??????????# ^== ## #????????????? | | ??????????# !== ## #????????????? | | ??????????+ != """ ##########?g??????????? | | ??????????# ^ """ #?????????b???????????? | | ??????????# """ +?????????????????????? | | ??????????# F" #?????????????????????? | | ??????????# """ #?????????????????????? | | ??????????# "" #?????????????????????? | | ????????? #?????????????????????? | | ????????? ? #?????????????????????? | | ????????? ?? ?????????????????????? | | ?????????? ###??####+##?????????????????????? | | ?????????? ?????????????????????????????????? | | ?????????????????????????????????????????????????? | | ?????????????????????????????????????????????????? | +----------------------------------------------------+ Best States ------------- Heat Dissipation 180 Coolant Potential 100 Energy Generation 71 Energy Capacity 1800 Matter Stores 300 Matter Capacity 300 Sight Range 24 Terrain Scan Range 16 Terrain Scan Density 10 Cloak Strength 4 Power Amplification 30 Base Temperature (-) 150 Armor Coverage 1500 Resistance: KI 30 Resistance: TH 30 Resistance: EX 25 Resistance: EM 25 Propulsion Shielding 90 Weapon Shielding 66 Point Defense Rating 240 Weapon Cycling 25 Phase Shifting 10 Evasion (%) 73 Targeting Accuracy 8 Launcher Accuracy 30 Target Analysis 8 Core Analysis 6 Armor Integrity Analysis 30 Recoil Reduction 4 Matter Filtering 30 Energy Filtering 30 Particle Charging 25 Kinecelleration 30 Offensive Hacking 30 Item Schematics ----------------- Combat Drone Bay | -6/Data Miner | Free Lgt. Regenerative Plating | -6/Data Miner | Free Cld. Nuclear Pulse Thruster | -6/Data Miner | Free Imp. Matter Compressor | -6/Data Miner | Free Tesla Bomb Launcher | -6/Data Miner | Free Imp. Antigrav System | -6/Data Miner | Free Imp. Remote Shield | -6/Data Miner | Free HERF Cannon | -6/Data Miner | Free Lrn. Tractor Beam | -6/Data Miner | Free Imp. Phase Shifter | -6/Data Miner | Free Assault Drone Bay | -4/Zhirov | Free Exp. Heat Sink | -4/Zhirov | Free Exp. Optical Array | -4/Zhirov | Free Imp. Arc Thrower | -4/Zhirov | Free Adv. Corruption Screen | -3/Research | Hacked Robot Schematics ------------------ R-10 Processor | -6/Data Miner | Free H-66 Slayer | -6/Data Miner | Free A-15 Conveyor | -6/Data Miner | Free B-60 Warrior | -6/Data Miner | Free Fabricated ------------ Hvy. Rocket Launcher | x1 | -7/Factory | Preloaded Assault Drone Bay | x1 | -3/Research Alien Tech Used ----------------- Integrated Reactor Transdimensional Reconstructor Achievements -------------- 30k Club Below Can't Touch This Turtlemind Challenges ------------ None Game ------ Seed RingMolecularStorm Manual? 0 Play Time 06:30:37 Cumulative 130.6 hours Start 2024.11.03 @ 23:15:04 End 2024.11.04 @ 16:18:09 Sessions 3 Manual Loads 0 Difficulty Rogue Special Mode None Game No. 45 Rogue 44 Adventurer 1 Explorer 0 Win Type - Total 2 Types 2/0/0/0/0/0/0/0/0 Lore% 39 Gallery% 56 Achievement% 47 Wizard Run 0 Options --------- Layout 0 ASCII 1 Keyboard 1 Movement Vi Keybinds 0 Fullscreen 2 Font 36/Terminus++ Map View 76x50 Zoom Use 0% Tactical HUD 1 Map Filters NONE Filters NONE Steam 1 RUN: 7b3cb7e7-d88f-4683-be3e-8dc3dbd48286